Cogmind - Beta 13 @@@ ROGUE MODE // 2024.04.06 @ 19:40:23 Player: DURANDAL Result: Destroyed by X-62 Marksman with Pulse Rifle Performance ------------- Evolutions (2) 1000 Regions Visited (5) 1000 Robots Destroyed (69) 345 Value Destroyed (1992) 1992 Prototype IDs (1) 20 Alien Tech Used (0) 0 Bonus (345) 345 TOTAL SCORE: 4702 Bonus ------- High Alert Combat Kills 45 Aligned with FarCom 300 Cogmind --------- Core Integrity 0/550 Matter 200/300 Energy 160/160 System Corruption 1% Temperature Cool (35) Movement Core (1550) Ox30 Location -8/Materials Parts ------- > --- POWER (1) -------- Light Nuclear Core > --- PROPULSION (4) --- (None) > --- UTILITY (4) ------ Huge Storage Unit > --- WEAPON (2) ------- Heavy Assault Rifle Heavy Assault Rifle > --- INVENTORY (25) --- Light Nuclear Core Medium Storage Unit High-capacity Storage Unit Medium Matter Pod (100) High-capacity Matter Pod (200) Targeting Computer Particle Charger Hacking Suite Skeleton Box Assault Rifle Light Assault Rifle Flak Gun Grenade Launcher Rocket Launcher Improved Grenade Launcher Mining Laser Peak State ------------ > --- POWER ------------ Light Angular Momentum Engine > --- PROPULSION ------- Aluminum Leg Aluminum Leg Carbon-fiber Leg Carbon-fiber Leg > --- UTILITY ---------- Huge Storage Unit Weapon Cycler Heavy Armor Plating > --- WEAPON ----------- Flak Gun Makeshift Shrapnel Gun > --- INVENTORY -------- Light Nuclear Core Light Nuclear Core Light Nuclear Core Light Nuclear Core Aluminum Leg Aluminum Leg Medium Storage Unit Medium Storage Unit High-capacity Storage Unit Medium Matter Pod High-capacity Matter Pod Targeting Computer Particle Charger Heavy Armor Plating Shield Generator Hacking Suite Skeleton Box Light Assault Rifle Light Assault Rifle Grenade Launcher Grenade Launcher Rocket Launcher Improved Grenade Launcher Mining Laser [Rating: 37] Favorites ----------- Power Light Nuclear Core Engine Light Angular Momentum Engine Power Core Light Nuclear Core Propulsion Improved Aluminum Leg Treads Light Treads Leg Improved Aluminum Leg Utility Huge Storage Unit Device Shield Generator Storage Huge Storage Unit Protection Weapon Shielding Weapon Assault Rifle Ballistic Gun Assault Rifle Launcher Grenade Launcher Special Weapon Mining Laser Build | -11 -10 -10 -10 -9 -8 ------- Run | Yrd Mat Min Exi Min Mat Slots Evolved 4 | . . . . . 4 Power . | . . . . . . Propulsion 2 | . . . . . 2 Utility 2 | . . . . . 2 Weapon . | . . . . . . Parts Attached 55 | 7 7 4 . 2 35 Power 8 | 1 1 2 . . 4 Engine 3 | 1 . . . . 2 Core 5 | . 1 2 . . 2 Reactor . | . . . . . . Propulsion 19 | 3 2 1 . 1 12 Treads 1 | 1 . . . . . Leg 18 | 2 2 1 . 1 12 Wheel . | . . . . . . Hover . | . . . . . . Flight . | . . . . . . Utility 13 | 1 3 1 . . 8 Device 5 | . . 1 . . 4 Storage 3 | 1 2 . . . . Processor . | . . . . . . Hackware . | . . . . . . Protection 5 | . 1 . . . 4 Artifact . | . . . . . . Weapon 15 | 2 1 . . 1 11 Energy Gun . | . . . . . . Energy Cannon . | . . . . . . Ballistic Gun 13 | 2 1 . . . 10 Ballistic Cannon . | . . . . . . Launcher 1 | . . . . . 1 Special Weapon 1 | . . . . 1 . Impact Weapon . | . . . . . . Slashing Weapon . | . . . . . . Piercing Weapon . | . . . . . . Special Melee Weapon . | . . . . . . Unidentified Prototypes 1 | . . . . . 1 Parts Lost 30 | . 1 3 . 1 25 Power 4 | . 1 1 . . 2 Propulsion 12 | . . 1 . 1 10 Utility 8 | . . 1 . . 7 Weapon 6 | . . . . . 6 Highest Loss Streak 16 | . 1 3 . 1 16 To Critical Strikes . | . . . . . . Average Slot Usage (%) 92 | . 83 99 100 96 88 Engine 2 | . 1 . . . 7 Core 7 | . 3 13 14 14 1 Leg 29 | . 27 27 28 25 34 Device 7 | . . 1 14 14 12 Storage 12 | . 14 14 14 14 9 Protection 6 | . 7 12 . . 6 Ballistic Gun 23 | . 27 28 28 21 17 Naked Turns . | . . . . . . Heaviest Build 113 | 12 90 91 91 91 113 Greatest Support 55 | 20 26 26 26 26 55 Greatest Overweight (x) 9 | . 4 6 3 6 9 Average Overweight (x) 2 | . 2 3 3 3 1 Largest Inventory Capacity 25 | 8 25 25 25 25 25 Average Capacity 24 | 7 22 25 25 25 25 Most Carried 25 | 5 19 24 23 24 25 Average Carried 20 | 2 13 22 22 23 23 Final Capacity 25 | 8 25 25 25 25 25 Final Carried 24 | 2 18 21 23 24 16 Class Distribution -------------------- 79% | Mutant 20% | Scavenger-Mutant Dominant Class ---------------- Mutant | -10/Materials Mutant | -10/Mines Mutant | -10/Exiles Mutant | -9/Mines Scavenger-Mutant | -8/Materials Resources | -11 -10 -10 -10 -9 -8 ----------- Run | Yrd Mat Min Exi Min Mat Matter Collected 2410 | 168 550 263 . 56 1373 Remotely . | . . . . . . Salvage Created 2479 | . 455 144 . 15 1865 Parts 133 | . 36 5 . . 92 Haulers Intercepted 6 | . 2 . . . 4 Recyclers Shooed 4 | . . . . . 4 Parts Field Recycled . | . . . . . . Retrieved Matter . | . . . . . . Parts Self-Destructed . | . . . . . . Prevented . | . . . . . . Kills | -11 -10 -10 -10 -9 -8 ------- Run | Yrd Mat Min Exi Min Mat Combat Hostiles Destroyed 52 | . 11 4 . 2 35 Guns 51 | . 11 4 . 1 35 Cannons 1 | . . . . 1 . Classes Destroyed 14 | . 6 2 . . 6 Worker 4 | . . . . . 4 Builder 2 | . 1 . . . 1 Hauler 6 | . 2 . . . 4 Recycler 5 | . . . . . 5 Mechanic 1 | . . . . . 1 Operator 3 | . 1 . . . 2 Watcher 1 | . 1 . . . . Swarmer 10 | . 6 . . . 4 Grunt 31 | . 5 2 . . 24 Sentry 3 | . . . . . 3 Demolisher 1 | . . 1 . . . Specialist 1 | . . . . . 1 Hunter 3 | . . . . . 3 Assembled 3 | . . 1 . 2 . Best Kill Streak 9 | . 3 2 . 2 9 Combat Bots Only 9 | . 3 2 . 2 9 Max Kills in Single Turn 2 | . 2 1 . 2 2 Gunslinging 1 | . 1 . . . 1 Exploded . | . . . . . . Melee . | . . . . . . Uniques/NPCs Destroyed . | . . . . . . Combat | -11 -10 -10 -10 -9 -8 -------- Run | Yrd Mat Min Exi Min Mat Hostile Shots Fired 451 | . 81 20 . 4 346 Missed 126 | . 34 5 . 2 85 Damage Taken 4906 | . 554 295 . 38 4019 Core 672 | . 62 46 . . 564 Absorbed by Shields 155 | . . . . 13 142 Redirected to Shielding 51 | . 31 20 . . . Regen/Repaired (Parts) 327 | . 85 . . . 242 Core Remaining (%) 78 | 100 . . . 56 . Volleys Fired 241 | . 44 14 . 18 165 Largest 2 | . 2 2 . 2 2 Hottest 120 | . 40 40 . 120 56 Shots Fired 452 | . 88 28 . 25 311 Gun 431 | . 88 28 . 7 308 Cannon . | . . . . . . Launcher 3 | . . . . . 3 Special 18 | . . . . 18 . Kinetic 431 | . 88 28 . 7 308 Thermal 18 | . . . . 18 . Explosive 3 | . . . . . 3 Electromagnetic . | . . . . . . Robot Hit Streak 15 | . 5 5 . 1 15 Robot Miss Streak 17 | . 4 3 . 1 17 Penetration Max 1 | . . . . . 1 Secondary Targets 7 | . 2 . . . 5 Max Gunslinging Chain 1 | . 1 . . . 1 Shots Hit Robots 302 | . 44 18 . 2 238 Core Hits 256 | . 22 7 . 3 224 Critical Kills 2 | . 2 . . . . Critical Parts Destroyed . | . . . . . . Critical Strikes 2 | . 2 . . . . Destroy 2 | . 2 . . . . Melee Attacks . | . . . . . . Impact . | . . . . . . Slashing . | . . . . . . Piercing . | . . . . . . Sneak Attacks . | . . . . . . Combat Hostiles . | . . . . . . Follow-up Attacks . | . . . . . . Damage Inflicted 4482 | . 533 228 . 52 3669 Guns 4424 | . 533 228 . 28 3635 Cannons . | . . . . . . Explosions 34 | . . . . . 34 Melee . | . . . . . . Ramming . | . . . . . . Kinetic 4424 | . 533 228 . 28 3635 Thermal 24 | . . . . 24 . Explosive 34 | . . . . . 34 Electromagnetic . | . . . . . . Impact . | . . . . . . Slashing . | . . . . . . Piercing . | . . . . . . Highest Corruption 2 | . . . . 2 1 Average Corruption 1 | . . . . 2 1 Corruption Purged . | . . . . . . Corruption Blocked . | . . . . . . Effects 11 | . . . . 5 6 Message Errors 4 | . . . . 3 1 Matter Fused 2 | . . . . . 2 Data Loss (minor) 2 | . . . . 1 1 Misfires 2 | . . . . 1 1 Alerts 1 | . . . . . 1 Overload Shots . | . . . . . . Overflow Damage 11 | . . . . . 11 Projectiles . | . . . . . . Explosions 11 | . . . . . 11 Melee . | . . . . . . Knockbacks . | . . . . . . Impact . | . . . . . . Kinetic . | . . . . . . Secondary . | . . . . . . Self-Inflicted Damage 35 | . . . . . 35 Shots 1 | . . . . . 1 Rammed . | . . . . . . Targets Rammed . | . . . . . . Kicked . | . . . . . . Crushed . | . . . . . . Highest Temperature 194 | . 1 15 . 180 194 Average Temperature 42 | . 1 8 . 74 36 Received Heat Transfer 1912 | . 237 69 . . 1606 Siege Activations . | . . . . . . Robots Corrupted . | . . . . . . Combat Hostiles . | . . . . . . Parts Fried . | . . . . . . Impact Corruptions . | . . . . . . Robots Melted . | . . . . . . Combat Hostiles . | . . . . . . Parts Melted . | . . . . . . Heat Transferred 50 | . . . . 50 . Parts Sabotaged . | . . . . . . Parts Stolen . | . . . . . . Parts Stripped . | . . . . . . Power Chain Reactions . | . . . . . . Alert | -11 -10 -10 -10 -9 -8 ------- Run | Yrd Mat Min Exi Min Mat Peak Influence 623 | . 135 61 . 4 623 Initial 11 | . . 11 . . . Average 94 | . 27 14 . . 259 Maximum Alert Level 2 | . . . . . 2 Low Security (%) 76 | 100 100 100 . 100 29 Level 1 17 | . . . . . 52 Level 2 6 | . . . . . 18 Level 3 . | . . . . . . Level 4 . | . . . . . . Level 5 . | . . . . . . High Security . | . . . . . . Max Security . | . . . . . . Squads Dispatched 9 | . 1 . . . 8 Investigation 3 | . . . . . 3 Extermination . | . . . . . . Reinforcement 6 | . 1 . . . 5 Assault . | . . . . . . Garrison . | . . . . . . Intercept . | . . . . . . Searches Triggered . | . . . . . . Construction Impeded 1 | . . . . . 1 Haulers Reinforced . | . . . . . . Active Scanning Responses . | . . . . . . Cargo Convoy Interrupts . | . . . . . . Stealth | -11 -10 -10 -10 -9 -8 --------- Run | Yrd Mat Min Exi Min Mat Distress Signals 10 | . 1 . . 1 8 Communications Jammed . | . . . . . . Distress Signals . | . . . . . . Times Spotted 101 | . 19 12 . 2 68 Peak Tracking Total 9 | . 3 9 . 3 6 Tactical Retreats 3 | . . . . 1 2 Traps | -11 -10 -10 -10 -9 -8 ------- Run | Yrd Mat Min Exi Min Mat Traps Triggered 4 | . 2 . . . 2 Indirectly . | . . . . . . Trap Hack Attempts . | . . . . . . Triggered . | . . . . . . Disarmed . | . . . . . . Reprogrammed . | . . . . . . Reused . | . . . . . . Traps Extracted . | . . . . . . Installed . | . . . . . . Triggered . | . . . . . . Machines | -11 -10 -10 -10 -9 -8 ---------- Run | Yrd Mat Min Exi Min Mat Machines Disabled 4 | . . . . . 4 Max in Single Turn 1 | . . . . . 1 Machines Repaired . | . . . . . . Machines Dismantled . | . . . . . . Machines Sabotaged . | . . . . . . Overloaded Fab Kills . | . . . . . . Hacking | -11 -10 -10 -10 -9 -8 --------- Run | Yrd Mat Min Exi Min Mat Machines Accessed 5 | . 1 . . . 4 Terminals 1 | . . . . . 1 Fabricators . | . . . . . . Repair Stations 2 | . 1 . . . 1 Recycling Units 1 | . . . . . 1 Scanalyzers . | . . . . . . Garrison Access 1 | . . . . . 1 Total Hacks 16 | . 5 . . . 11 Successful 10 | . 4 . . . 6 Failed 6 | . 1 . . . 5 Catastrophic 1 | . . . . . 1 Database Lockouts . | . . . . . . Manual 1 | . . . 1 . . Terminals 4 | . . . . . 4 Fabricators . | . . . . . . Repair Stations 9 | . 5 . . . 4 Recycling Units 1 | . . . . . 1 Scanalyzers . | . . . . . . Garrison Access 2 | . . . . . 2 Terminal Hacks 1 | . . . . . 1 Robot Analysis 1 | . . . . . 1 Fabricator Hacks . | . . . . . . Repair Station Hacks 8 | . 4 . . . 4 Scan Component 4 | . 2 . . . 2 Repair 4 | . 2 . . . 2 Recycling Unit Hacks 1 | . . . . . 1 Retrieve Components 1 | . . . . . 1 Scanalyzer . | . . . . . . Garrison Access Hacks . | . . . . . . Unauthorized Hacks . | . . . . . . Terminals . | . . . . . . Fabricators . | . . . . . . Repair Stations . | . . . . . . Recycling Units . | . . . . . . Scanalyzers . | . . . . . . Garrison Access . | . . . . . . Data Cores Recovered 1 | . 1 . . . . Used . | . . . . . . Hacking Detections 3 | . . . . . 3 Full Trace Events 2 | . . . . . 2 Feedback Events . | . . . . . . Feedback Blocked . | . . . . . . Robot Schematics Acquired . | . . . . . . Robots Built . | . . . . . . Authchips . | . . . . . . Time . | . . . . . . Total Robot Build Rating . | . . . . . . Part Schematics Acquired . | . . . . . . Parts Built . | . . . . . . Authchips . | . . . . . . Time . | . . . . . . Total Part Build Rating . | . . . . . . Parts Repaired 4 | . 2 . . . 2 Time 134 | . 52 . . . 82 Parts Recycled . | . . . . . . Recycled Matter . | . . . . . . Retrieved Matter . | . . . . . . Retrieved Components 10 | . . . . . 10 Parts Scanalyzed . | . . . . . . Part Schematics Acquired . | . . . . . . Parts Damaged . | . . . . . . Bothacking | -11 -10 -10 -10 -9 -8 ------------ Run | Yrd Mat Min Exi Min Mat Used RIF Installer . | . . . . . . Robots Hacked . | . . . . . . Non-combat . | . . . . . . Combat . | . . . . . . Robot Hacks Applied . | . . . . . . Relay Couplers Released . | . . . . . . Fabnet Peak Effective % . | . . . . . . Robots Rewired . | . . . . . . Allies Hacked . | . . . . . . Hacks Repelled . | . . . . . . Allies | -11 -10 -10 -10 -9 -8 -------- Run | Yrd Mat Min Exi Min Mat Total Allies . | . . . . . . Largest Group . | . . . . . . Highest-Rated Group . | . . . . . . Highest-Rated Ally . | . . . . . . Total Orders . | . . . . . . Ally Attacks . | . . . . . . Total Damage . | . . . . . . Kills . | . . . . . . Allies Corrupted . | . . . . . . Allies Melted . | . . . . . . Intel | -11 -10 -10 -10 -9 -8 ------- Run | Yrd Mat Min Exi Min Mat Robot Analysis Total 1 | . . . . . 1 Derelict Logs Recovered 3 | . . 1 . 2 . Drone Launches . | . . . . . . Drone Recoveries . | . . . . . . Exploration | -11 -10 -10 -10 -9 -8 ------------- Run | Yrd Mat Min Exi Min Mat Turns Passed 8748 | 54 1896 1927 1057 1312 2502 Spaces Moved 2564 | 33 589 550 320 339 733 Core 7 | 7 . . . . . Treads 8 | 8 . . . . . Legs 2549 | 18 589 550 320 339 733 Wheels . | . . . . . . Hover . | . . . . . . Flight . | . . . . . . Fastest Speed 50 | 50 120 330 330 330 190 Average Speed 294 | 114 285 331 330 356 238 Slowest Speed 750 | 160 400 540 330 540 750 Overloaded Moves . | . . . . . . Propulsion Burnouts . | . . . . . . Robots Hopped . | . . . . . . Cave-ins Triggered . | . . . . . . Time Travels 1 | . . . . . 1 Exploration Rate (%) 57 | 3 66 80 76 61 59 Regions Visited 5 Branch Regions 3 Pre-discovered Areas 2 | . . . . 2 . Known Exits Taken . | . . . . . . Unknown Exits Taken 5 | 1 1 1 1 1 . Scrap Searched 2 | . . 2 . . . Spaces Dug . | . . . . . . Terrain Destroyed 26 | . . . . 5 21 Melee . | . . . . . . Projectile 5 | . . . . 5 . AOE 21 | . . . . . 21 Terrain Rammed . | . . . . . . Walls Destroyed . | . . . . . . Machines Disabled . | . . . . . . Actions | -11 -10 -10 -10 -9 -8 --------- Run | Yrd Mat Min Exi Min Mat Total 3378 | 49 723 630 323 383 1270 Wait 431 | 1 54 56 2 23 295 Move 2559 | 32 588 549 319 338 733 Hop . | . . . . . . Pick Up 70 | 8 23 6 2 2 29 Fast Attach . | . . . . . . Attach 45 | 7 7 4 . 1 26 Detach 7 | 1 4 1 . . 1 Swap 10 | . . . . 1 9 Drop 15 | . 3 . . . 12 Fire 241 | . 44 14 . 18 165 Melee . | . . . . . . Ram . | . . . . . . Kick . | . . . . . . Crush . | . . . . . . Escape Stasis . | . . . . . . Rewire . | . . . . . . Trap . | . . . . . . Miscellaneous . | . . . . . . Route ------- -11/Scrapyard -10/Materials (discovered 5 exits: [*Mat x3] / [*Min x2]) -10/Mines (discovered 2 exits: [*Mat] / *Exi) -10/Exiles -9/Mines -8/Materials (discovered 2 exits: [*Fac] / Sto) History --------- Turn | Location | Event 2 | -11/Scrapyard | Discovered new exit (range 16) 55 | -11/Scrapyard | Entered Materials 190 | -10/Materials | Discovered new exit (range 3) 311 | -10/Materials | Build established: Mutant 461 | -10/Materials | Discovered new exit (range 7) 709 | -10/Materials | Discovered new exit (range 16) 991 | -10/Materials | Discovered new exit (range 16) 1116 | -10/Materials | Discovered new exit (range 8) 1510 | -10/Materials | Repaired Lgt. Assault Rifle 1537 | -10/Materials | Repaired Assault Rifle 1951 | -10/Materials | Entered Mines 2543 | -10/Mines | Received a Rocket Launcher from a helpful Derelict 2643 | -10/Mines | Discovered new exit (range 8) 3387 | -10/Mines | YI-UF0 nonchalantly dropped a Grenade Launcher on the ground 3651 | -10/Mines | Assembled infested the area 3728 | -10/Mines | Lost 3 parts (1p1n1u) 3855 | -10/Mines | Deemed a non-threat by the Exiles lab entrance 3858 | -10/Mines | Discovered new exit (range 5) 3878 | -10/Mines | Entered Exiles 3958 | -10/Exiles | Met 8R-AWN 4020 | -10/Exiles | Met EX-HEX 4171 | -10/Exiles | Met EX-BIN 4217 | -10/Exiles | Aligned with FarCom system 4220 | -10/Exiles | Given EX-Vault access code 4303 | -10/Exiles | Opened EX-Vault 4313 | -10/Exiles | Found Prototype Device 4320 | -10/Exiles | Found Prototype Device 4391 | -10/Exiles | Warned to stay clear of 0b10 Research branches 4490 | -10/Exiles | Met EX-DEC 4600 | -10/Exiles | Visited The Gauntlet 4896 | -10/Exiles | Discovered new exit (range 14) 4935 | -10/Exiles | Stole two prototypes: Skeleton Box, Chronowheel 4935 | -10/Exiles | Entered Mines 4961 | -9/Mines | Met a Derelict bent on vengeance 4968 | -9/Mines | Learned Materials interactive machine intel 5213 | -9/Mines | A weapon hastily lodged in a ceiling crevice suddenly fell to the ground 5288 | -9/Mines | Learned location of Storage (-8) 5313 | -9/Mines | Discovered new exit (range 5) 5649 | -9/Mines | Excavation squad dispatched 5649 | -9/Mines | A large section of the Mines collapsed 5899 | -9/Mines | Excavation squad dispatched 6247 | -9/Mines | Entered Materials 6247 | -8/Materials | Evolved 4 slots: Propulsion x2, Utility x2 6248 | -8/Materials | Identified exit to Storage 6249 | -8/Materials | Loaded intel: 19 interactive machine locations 6264 | -8/Materials | Identified Chronowheel 6264 | -8/Materials | Activated Chronowheel 6264 | -8/Materials | Spacetime reconverged on an earlier point 6818 | -8/Materials | Destroyed 9 combat bots 6818 | -8/Materials | Lost 6 parts (3n2u1w) 7183 | -8/Materials | Repaired Hvy. Armor Plating 7188 | -8/Materials | Build established: Scavenger-Mutant 7228 | -8/Materials | Repaired Weapon Cycler? 7901 | -8/Materials | Discovered new exit (range 14) 8682 | -8/Materials | Core integrity fell below 50% 8733 | -8/Materials | Core integrity fell below 20% 8749 | -8/Materials | Destroyed by X-62 Marksman with Pulse Rifle Last Messages --------------- 08715_ Acquired 5 matter. 08715_ Critical hit (Burn: +37). 08719_ G-47 Trooper destroyed. 08720_ Acquired 35 matter. 08724_ Imp. Light Armor Plating destroyed. 08724_ Knocked back. 08725_ Acquired 5 matter. 08726_ Penetrated by Slug. 08726_ Lgt. Nuclear Core destroyed. 08727_ Penetrated by Slug. 08735_ Aluminum Leg destroyed. 08735_ Destroyed Aluminum Leg. 08736_ The unstable cave ceiling collapses. 08737_ Hvy. Assault Rifle destroyed. 08737_ Atomic Centrifuge disabled. 08739_ Aluminum Leg destroyed. 08740_ Grenade Launcher destroyed. 08743_ X-62 Marksman destroyed. 08746_ Penetrated by Slug. 08749_ Weapon Cycler destroyed. Map ----- +----------------------------------------------------+ | | | | | | | | | | | ???????????????????????????????????? | | ???????????????????????????????????? | | ???????????????????????????????????? | | ???????????????????????????????????? | | ???????????????????????????????????? | | ???????????????????????????????????? | | ???????????????????????????????????? | | ???????????#???????????????????????? | | ??????????#Y#?????? ??????????????? | | ?????????? ????? #??????????????? | | ?????????? ???? #??????????????? | | ??????????! ???? #??????????????? | | ?#???????? ??? #??????????????? | | ? ?????? ?? ##??#??????????? | | ??"" ????? ?? # ??????????? | | ?""" ???? ? ??????????? | | #""" ?###;## ""??????????? | | ? ! # ""??????????? | | ?""" ""??????????? | | ???" g ????????? | | ????????# =@ ;H #?????????????? | | ????????# !%*# #?????????????? | | ????????# x##?# ###???########### | | ????????## #?# #?????# # | | ?????????## ;#?# #?????# # | | ???????#### ;#"" #?????# # | | ???????# " #?????# """ """ # | | ???????# " " " #?"???# """ """ # | | ???????# "" " #?T???# """ """ # | | ???????# "" ! " + " ??# # | | ???????# # # # # | | ???????#### #% ##############"## | | ???????# ]! # #?# ! ! | | ???????#! !! # w ### ==% *[ | | ???????# + % = [ =[%]! | | ???????# # ################ | | ???????# !# #??????????????? | | ???????# * ! ?### ###??????????????? | | ???????######???# #????????????????? | | ???????????????##/#######??????????? | | ???????????????# #??????????? | | ???????????????# / """ #??????????? | | ???????????????# """ #??????????? | | ???????????????# = """ #??????????? | | ???????????????# #??????????? | +----------------------------------------------------+ Best States ------------- Heat Dissipation 31 Energy Generation 18 Energy Capacity 160 Matter Stores 300 Matter Capacity 300 Sight Range 16 Terrain Scan Density 10 Armor Coverage 600 Weapon Shielding 33 Weapon Cycling 30 Evasion (%) 55 Recoil Reduction 1 Item Schematics ----------------- None Robot Schematics ------------------ None Fabricated ------------ Nothing Alien Tech Used ----------------- None Achievements -------------- More Dakka Please Challenges ------------ None Game ------ Seed SubdwellerDisposableHumpback Manual? 0 Play Time 00:51:56 Cumulative 8.2 hours Start 2024.04.06 @ 18:45:29 End 2024.04.06 @ 19:40:23 Sessions 1 Manual Loads 0 Difficulty Rogue Special Mode None Game No. 15 Rogue 15 Adventurer 0 Explorer 0 Win Type - Total 0 Types 0/0/0/0/0/0/0/0/0 Lore% 14 Gallery% 11 Achievement% 13 Wizard Run 0 Options --------- Layout 1 ASCII 0 Keyboard 0 Movement Numpad Keybinds 0 Fullscreen 1 Font 24/Smallcaps Map View 50x35 Zoom Use 0% Tactical HUD 1 Map Filters NONE Filters NONE Steam 1 RUN: 545c7e9f-651a-4625-b13f-59a61dc49bca